bitfinex-derivatives/quotes_BTCF0:USTF0_20251119
["timestamp","ask_amount","ask_price","bid_price","bid_amount"]
[1763575304902,0.0158,89557.0,89545.0,0.00219803]
[1763575305406,0.07676,89557.0,89548.0,0.1117646]
[1763575305609,0.001,89560.0,89556.0,0.00219803]
[1763575305799,0.09684,89558.0,89556.0,0.00219803]
[1763575306105,0.001,89557.0,89556.0,0.00219803]
[1763575306504,0.001,89557.0,89556.0,0.11395293]
[1763575306705,0.001,89557.0,89556.0,0.00219803]
[1763575307303,0.001,89557.0,89556.0,0.11395293]
[1763575307610,0.001,89557.0,89556.0,0.00219803]
[1763575307611,0.06874,89557.0,89556.0,0.00219803]
[1763575307903,0.001,89558.0,89556.0,0.00219803]
[1763575308409,0.001,89558.0,89556.0,0.11395273]
[1763575308707,0.001,89558.0,89556.0,0.00219803]
[1763575308903,0.00016758,89562.0,89556.0,0.00219803]
[1763575309811,0.0158,89557.0,89556.0,0.00219803]
[1763575310198,0.0158,89557.0,89544.0,0.00016758]
[1763575310199,0.05294,89545.0,89544.0,0.00016758]
[1763575310403,0.05294,89545.0,89544.0,0.12024383]
[1763575311204,0.05294,89545.0,89544.0,0.11820609]
[1763575311403,0.05394,89545.0,89544.0,0.11820609]
[1763575313008,0.05394,89545.0,89544.0,0.12040412]
[1763575313209,0.14934,89545.0,89544.0,0.12040412]
[1763575313407,0.001,89545.0,89544.0,0.12040412]
[1763575314006,0.0158,89557.0,89544.0,0.12040412]
[1763575314213,0.06874,89557.0,89556.0,0.11820609]
[1763575314412,0.06874,89557.0,89556.0,0.12040412]
[1763575315012,0.06874,89557.0,89556.0,0.11820609]
[1763575315405,0.06874,89557.0,89536.0,0.00016749]
[1763575315606,0.06874,89557.0,89537.0,0.00219803]
[1763575315801,0.05294,89538.0,89537.0,0.00219803]
[1763575316414,0.05294,89538.0,89537.0,0.14790183]
[1763575317410,0.05394,89538.0,89537.0,0.14790183]
[1763575317611,0.05394,89538.0,89537.0,0.1457038]
[1763575319612,0.05394,89538.0,89537.0,0.14790183]
[1763575320013,0.16234,89538.0,89537.0,0.14790183]
[1763575321511,0.16234,89538.0,89505.0,0.01653]
[1763575321512,0.05294,89537.0,89505.0,0.01653]
[1763575321711,0.26551783,89530.0,89506.0,0.00219803]
[1763575321911,0.001,89538.0,89509.0,0.1118127]
[1763575322111,0.001,89538.0,89505.0,0.01653]
[1763575322112,0.09492,89537.0,89510.0,0.00219803]
[1763575322307,0.26551783,89530.0,89510.0,0.00219803]
[1763575322512,0.09492,89537.0,89529.0,0.06049]
[1763575322711,0.1084,89536.0,89535.0,0.06049]
[1763575323019,0.14413,89536.0,89535.0,0.06268803]
[1763575323321,0.16956,89536.0,89535.0,0.06268803]
[1763575323926,0.06116,89536.0,89535.0,0.06268803]
[1763575324112,0.16956,89536.0,89535.0,0.06268803]
[1763575324412,0.17056,89536.0,89535.0,0.06268803]
[1763575324924,0.17056,89536.0,89535.0,0.00219803]
[1763575325314,0.17056,89536.0,89527.0,0.00016749]
[1763575325618,0.17056,89536.0,89527.0,0.00236552]
[1763575326720,0.16956,89536.0,89535.0,0.03564]
[1763575326917,0.16956,89536.0,89535.0,0.03783803]
[1763575327310,0.16956,89536.0,89535.0,0.00219803]
[1763575328221,0.16956,89536.0,89527.0,0.00016749]
[1763575328415,0.16956,89536.0,89528.0,0.00219803]
[1763575328915,0.17056,89536.0,89528.0,0.00219803]
[1763575329115,0.06116,89529.0,89528.0,0.00219803]
[1763575329510,0.06116,89529.0,89528.0,0.06268803]
[1763575329710,0.06116,89529.0,89528.0,0.00219803]
[1763575329912,0.03573,89503.0,89502.0,0.00010225]
[1763575330116,0.03573,89503.0,89502.0,0.00230028]
[1763575330117,0.06116,89503.0,89502.0,0.00230028]
[1763575330421,0.26551783,89512.0,89502.0,0.06279028]
[1763575330617,0.04007124,89515.0,89514.0,0.06049]
[1763575330828,0.1084,89515.0,89514.0,0.06268803]
[1763575331020,0.06116,89507.0,89506.0,0.00016759]
[1763575331321,0.06116,89507.0,89502.0,0.00230028]
[1763575331522,0.1084,89515.0,89502.0,0.06279028]
[1763575331523,0.14847124,89515.0,89502.0,0.06279028]
[1763575331831,0.1084,89515.0,89502.0,0.06279028]
[1763575332125,0.04007124,89520.0,89519.0,0.06049]
[1763575332335,0.04007124,89530.0,89522.0,0.06049]
[1763575332521,0.04007124,89530.0,89522.0,0.00219803]
[1763575332522,0.16972759,89523.0,89522.0,0.00219803]
[1763575333221,0.10856759,89523.0,89522.0,0.06268803]
[1763575333421,0.00016759,89523.0,89522.0,0.06268803]
[1763575333919,0.00116759,89523.0,89522.0,0.06268803]
[1763575334124,0.06232759,89523.0,89522.0,0.00219803]
[1763575334323,0.00116759,89523.0,89522.0,0.06268803]
[1763575334716,0.06232759,89523.0,89511.0,0.00011218]
[1763575334921,0.06232759,89523.0,89512.0,0.00219803]
[1763575335330,0.00116759,89523.0,89522.0,0.06049]
[1763575335622,0.06116,89512.0,89511.0,0.00011218]
[1763575335831,0.06116,89512.0,89511.0,0.00231021]
[1763575339423,0.06116,89512.0,89511.0,0.00011218]
[1763575340040,0.06116,89503.0,89502.0,0.00010225]
[1763575340332,0.16956,89503.0,89502.0,0.00010225]
[1763575340626,0.14413,89503.0,89502.0,0.06059225]
[1763575340834,0.16956,89503.0,89502.0,0.00010225]
[1763575341726,0.06116,89487.0,89472.0,0.04006486]
[1763575342026,0.00016759,89495.0,89494.0,0.06049]
[1763575342231,0.06132759,89495.0,89494.0,0.06049]
[1763575342529,0.06116,89487.0,89486.0,0.0381174]
[1763575342726,8.651e-05,89487.0,89486.0,0.0629674]
[1763575343619,8.651e-05,89487.0,89486.0,0.0024774]
[1763575343620,0.06124651,89487.0,89486.0,0.0024774]
[1763575344935,0.06224651,89487.0,89486.0,0.0024774]
[1763575345132,0.00108651,89487.0,89486.0,0.0705874]
[1763575345631,8.651e-05,89487.0,89486.0,0.0705874]
[1763575345831,0.00108651,89487.0,89486.0,0.0705874]
[1763575346731,0.03514651,89487.0,89486.0,0.0705874]
[1763575346929,8.651e-05,89487.0,89486.0,0.0705874]
[1763575347225,0.00108651,89487.0,89486.0,0.0705874]
[1763575347632,0.06899651,89487.0,89486.0,0.0024774]
[1763575348427,0.06799651,89487.0,89486.0,0.0024774]
[1763575348935,0.06799651,89487.0,89486.0,0.00027937]
[1763575350130,0.06799651,89487.0,89464.0,0.04006486]
[1763575350336,0.06799651,89487.0,89470.0,0.1118609]
[1763575350535,0.06799651,89487.0,89472.0,0.01936]
[1763575350729,0.00016759,89495.0,89494.0,0.1783821]
[1763575350932,0.05974107,89508.0,89494.0,0.1783821]
[1763575350933,0.04007124,89522.0,89510.0,0.06655]
[1763575351134,0.04007124,89521.0,89511.0,0.06874803]
[1763575351321,0.04007124,89523.0,89511.0,0.06874803]
[1763575351727,4.355e-05,89522.0,89521.0,0.06814]
[1763575351924,4.355e-05,89522.0,89521.0,0.07033803]
[1763575353331,0.00104355,89522.0,89521.0,0.07033803]
[1763575353932,0.06704355,89522.0,89521.0,0.00219803]
[1763575354132,0.06704355,89522.0,89521.0,0.06982803]
[1763575354333,0.00104355,89522.0,89521.0,0.06982803]
[1763575354535,0.066,89514.0,89513.0,0.00016759]
[1763575354739,0.066,89514.0,89513.0,0.00236562]
[1763575354937,0.066,89514.0,89513.0,0.03593562]
[1763575355130,0.066,89514.0,89513.0,0.00236562]
[1763575355731,0.06604355,89522.0,89521.0,0.03357]
[1763575355932,0.06604355,89522.0,89521.0,0.00219803]
[1763575356133,4.355e-05,89522.0,89521.0,0.06982803]
[1763575357932,0.00016759,89530.0,89529.0,0.06763]
[1763575358134,0.00016759,89530.0,89529.0,0.06982803]
[1763575358841,0.06616759,89530.0,89529.0,0.00219803]
[1763575359034,0.06616759,89530.0,89529.0,0.06982803]
[1763575359235,0.00016759,89530.0,89529.0,0.06982803]
[1763575359833,0.06616759,89530.0,89529.0,0.06982803]
[1763575360040,0.03261759,89530.0,89529.0,0.06982803]
[1763575360439,0.00016759,89530.0,89529.0,0.06982803]
[1763575360733,0.06616759,89530.0,89529.0,0.00219803]
[1763575361342,0.066,89514.0,89500.0,0.04006486]
[1763575361638,0.066,89514.0,89488.0,0.04006486]
[1763575361835,0.066,89514.0,89488.0,0.111839]
[1763575362535,0.03245,89522.0,89521.0,0.06763]
[1763575362742,0.1744,89522.0,89521.0,0.06982803]
[1763575362940,0.05584124,89532.0,89521.0,0.06982803]
[1763575363136,0.03261759,89530.0,89529.0,0.06763]
[1763575363337,0.03261759,89530.0,89529.0,0.00219803]
[1763575363338,0.17456759,89530.0,89529.0,0.00219803]
[1763575365540,0.10956759,89530.0,89513.0,0.06779759]
[1763575365840,0.32058076,89530.0,89514.0,0.00219803]
[1763575366046,0.10956759,89530.0,89514.0,0.00219803]
[1763575366440,0.11056759,89530.0,89514.0,0.00219803]
[1763575366936,0.066,89515.0,89514.0,0.00219803]
[1763575368745,0.066,89514.0,89513.0,0.03373759]
[1763575368948,0.066,89514.0,89513.0,0.00236562]
[1763575369451,0.066,89514.0,89513.0,0.00016759]
[1763575370352,0.1744,89514.0,89513.0,0.00016759]
[1763575370944,0.1744,89514.0,89484.0,0.01936]
[1763575371147,0.1744,89514.0,89485.0,0.00219803]
[1763575371148,0.1084,89514.0,89485.0,0.00219803]
[1763575371347,0.1084,89514.0,89486.0,0.1118419]
[1763575371546,0.1084,89514.0,89487.0,0.00219803]
[1763575371947,0.1084,89514.0,89491.0,0.111835]
[1763575372150,0.03355,89493.0,89492.0,0.00219803]
[1763575372354,0.066,89493.0,89492.0,0.06982803]
[1763575373247,0.03245,89493.0,89492.0,0.06982803]
[1763575373557,0.03345,89493.0,89492.0,0.06982803]
[1763575373744,0.067,89493.0,89492.0,0.00219803]
[1763575374255,0.001,89493.0,89492.0,0.06982803]
[1763575375547,0.09504,89502.0,89492.0,0.06982803]
[1763575375844,0.00016759,89509.0,89492.0,0.06982803]
[1763575376047,0.00016759,89509.0,89508.0,0.06763]
[1763575376256,0.04007124,89533.0,89529.0,0.06763]
[1763575376552,0.066,89533.0,89532.0,0.00219803]
[1763575376756,0.01869,89532.0,89509.0,0.04006486]
[1763575376947,0.03245,89514.0,89513.0,0.06982803]
[1763575377253,0.066,89514.0,89513.0,0.00219803]
[1763575378648,0.06616759,89522.0,89521.0,0.06763]
[1763575378952,0.00016759,89522.0,89521.0,0.06982803]
[1763575379749,0.00116759,89522.0,89521.0,0.06982803]
[1763575380548,0.00016759,89522.0,89521.0,0.06982803]
[1763575380754,0.1084,89539.0,89538.0,0.06763]
[1763575380950,0.1744,89539.0,89538.0,0.00219803]
[1763575381352,0.14085,89539.0,89538.0,0.06982803]
[1763575381555,0.38254747,89547.0,89538.0,0.06982803]
[1763575381556,0.34247623,89547.0,89546.0,0.06763]
[1763575381753,0.34247623,89547.0,89546.0,0.06982803]
[1763575381962,0.1084,89549.0,89548.0,0.06319]
[1763575382258,0.03019,89549.0,89548.0,0.06538803]
[1763575382558,0.06255,89549.0,89548.0,0.00219803]
[1763575382766,0.06255,89539.0,89538.0,0.00016759]
[1763575383060,0.06255,89539.0,89538.0,0.00236562]
[1763575383555,0.06255,89539.0,89538.0,0.00016759]
[1763575383747,0.06255,89512.0,89509.0,0.04006486]
[1763575383945,0.0189,89520.0,89488.0,0.10050202]
[1763575383946,0.06255,89499.0,89497.0,0.00219803]
[1763575384152,0.06255,89498.0,89497.0,0.00219803]
[1763575384347,0.06255,89498.0,89497.0,0.06538803]
[1763575384561,0.06255,89498.0,89497.0,0.03224803]
[1763575384869,0.15663,89498.0,89497.0,0.06538803]
[1763575385154,0.17099,89498.0,89497.0,0.06538803]
[1763575385357,0.00016759,89506.0,89505.0,0.06319]
[1763575385358,0.03035759,89506.0,89505.0,0.06319]
[1763575385558,0.17115759,89506.0,89505.0,0.06538803]
[1763575385762,0.17115759,89506.0,89505.0,0.00219803]
[1763575386060,0.17115759,89506.0,89505.0,0.06538803]
[1763575386061,0.10860759,89506.0,89505.0,0.06538803]
[1763575386251,0.00016759,89506.0,89505.0,0.06538803]
[1763575387760,0.04007124,89534.0,89533.0,0.06319]
[1763575387961,0.14427,89534.0,89533.0,0.00219803]
[1763575388162,0.14427,89534.0,89533.0,0.06538803]
[1763575388456,0.03019,89534.0,89533.0,0.06538803]
[1763575388658,0.17099,89534.0,89533.0,0.00219803]
[1763575388860,0.10844,89534.0,89533.0,0.06538803]
[1763575389057,0.00016759,89542.0,89533.0,0.06538803]
[1763575389058,0.00016759,89542.0,89541.0,0.06319]
[1763575389262,0.00016759,89542.0,89541.0,0.06538803]
[1763575389564,0.06271759,89542.0,89541.0,0.00219803]
[1763575390264,0.06371759,89542.0,89541.0,0.00219803]
[1763575390452,0.00116759,89542.0,89541.0,0.06538803]
[1763575390847,0.04007124,89552.0,89551.0,0.06319]
[1763575391049,0.04007124,89554.0,89552.0,0.06319]
[1763575391251,0.04007124,89564.0,89563.0,0.06319]
[1763575391461,0.17095,89564.0,89544.0,0.01819]
[1763575391646,0.06255,89555.0,89545.0,0.00219803]
[1763575391849,0.0189,89557.0,89545.0,0.00219803]
[1763575391850,0.06255,89546.0,89545.0,0.00219803]
[1763575392252,0.0189,89557.0,89541.0,0.00016749]
[1763575392253,0.06255,89542.0,89541.0,0.00016749]
[1763575392960,0.06255,89542.0,89541.0,0.00236552]
[1763575393151,0.06255,89542.0,89541.0,0.00016749]
[1763575393855,0.06255,89542.0,89541.0,0.00236552]
[1763575393856,0.17099,89542.0,89541.0,0.00236552]
[1763575394448,0.17099,89542.0,89541.0,0.00016749]
[1763575394653,0.17199,89542.0,89516.0,0.1118039]
[1763575394857,0.21101317,89540.0,89517.0,0.00219803]
[1763575395452,0.21101317,89540.0,89519.0,0.1118007]
[1763575395653,0.00016749,89538.0,89521.0,0.00016749]
[1763575395958,0.03019,89523.0,89522.0,0.00219803]
[1763575396158,0.06255,89523.0,89522.0,0.03224803]
[1763575396361,0.06255,89523.0,89522.0,0.00219803]
[1763575397151,0.06255,89522.0,89521.0,0.00016749]
[1763575397462,0.0189,89518.0,89505.0,0.01936]
[1763575397761,0.1084,89517.0,89505.0,0.02155803]
[1763575398567,0.1084,89517.0,89505.0,0.00219803]
[1763575398955,0.1084,89517.0,89505.0,0.11401613]
[1763575399151,0.00016749,89520.0,89519.0,0.06319]
[1763575399356,0.06271749,89520.0,89519.0,0.00219803]
[1763575399562,0.06271749,89520.0,89519.0,0.03224803]
[1763575399957,0.00016749,89520.0,89519.0,0.17718893]
[1763575401462,0.04005363,89548.0,89546.0,0.06319]
[1763575401665,0.00027913,89566.0,89559.0,0.03005]
[1763575401966,0.00027913,89566.0,89565.0,0.06538803]
[1763575402464,0.00027913,89566.0,89565.0,0.17713153]
[1763575402766,0.00027913,89566.0,89565.0,0.06538803]
[1763575403270,0.06282913,89566.0,89565.0,0.00219803]
[1763575403960,0.03046913,89566.0,89565.0,0.03224803]
[1763575404164,0.06282913,89566.0,89565.0,0.00219803]
[1763575405163,0.00027913,89566.0,89565.0,0.05892803]
[1763575405567,0.00027913,89566.0,89557.0,0.00016749]
[1763575405568,0.0698,89558.0,89557.0,0.00016749]
[1763575405961,0.0698,89558.0,89521.0,0.15178341]
[1763575406162,0.0698,89558.0,89532.0,0.00219803]
[1763575406361,0.00027913,89566.0,89565.0,0.05374]
[1763575406666,0.00127913,89566.0,89565.0,0.16768153]
[1763575406865,0.00127913,89566.0,89565.0,0.05593803]
[1763575407064,0.00027913,89566.0,89565.0,0.05593803]
[1763575408366,0.00027913,89566.0,89565.0,0.02925803]
[1763575409272,0.05324913,89566.0,89565.0,0.00219803]
[1763575409871,0.10875913,89566.0,89565.0,0.05593803]
[1763575410075,0.00027913,89566.0,89565.0,0.07153803]
[1763575410268,0.04005363,89590.0,89573.0,0.05374]
[1763575410470,0.04005363,89602.0,89574.0,0.00219803]
[1763575410769,0.05297,89575.0,89574.0,0.00219803]
[1763575411366,0.26506607,89590.0,89574.0,0.05593803]
[1763575411367,0.00016749,89583.0,89574.0,0.05593803]
[1763575411569,0.09684,89582.0,89580.0,0.02668]
[1763575411764,0.09684,89582.0,89581.0,0.00219803]
[1763575411969,0.10848,89582.0,89581.0,0.02861803]
[1763575412172,0.1617,89582.0,89581.0,0.00219803]
[1763575412368,0.1617,89582.0,89566.0,0.00016749]
[1763575412562,0.1617,89582.0,89571.0,0.1117353]
[1763575412764,0.05322,89582.0,89581.0,0.00219803]
[1763575412966,0.14682,89582.0,89581.0,0.00219803]
[1763575413267,0.00016749,89583.0,89582.0,0.05243]
[1763575413572,0.00016749,89583.0,89582.0,0.05462803]
[1763575414972,0.05338749,89583.0,89582.0,0.00219803]
[1763575415668,0.05438749,89583.0,89582.0,0.00219803]
[1763575415870,0.02605,89567.0,89548.0,0.1117634]
[1763575416086,0.02605,89567.0,89566.0,0.00236552]
[1763575416087,0.05322,89567.0,89566.0,0.00236552]
[1763575416470,0.00116749,89583.0,89566.0,0.02878552]
[1763575417278,0.00016749,89583.0,89566.0,0.02878552]
[1763575417676,0.09284,89582.0,89566.0,0.02878552]
[1763575418071,0.00016749,89583.0,89566.0,0.02878552]
[1763575418879,0.00016749,89583.0,89582.0,0.02642]
[1763575419082,0.00016749,89583.0,89582.0,0.02861803]
[1763575419280,0.00016749,89583.0,89582.0,0.05462803]
[1763575420172,0.02621749,89583.0,89582.0,0.00219803]
[1763575420478,0.02721749,89583.0,89582.0,0.00219803]
[1763575420867,0.05438749,89583.0,89582.0,0.00219803]
[1763575421080,0.05322,89567.0,89566.0,0.00016749]
[1763575421280,0.05322,89567.0,89566.0,0.00236552]
[1763575421876,0.05322,89567.0,89566.0,0.00016749]
[1763575422176,0.28086607,89580.0,89566.0,0.00016749]
[1763575422177,0.0158,89580.0,89566.0,0.02878552]
[1763575422376,0.10844,89570.0,89566.0,0.02878552]
[1763575422568,0.02605,89567.0,89566.0,0.00236552]
[1763575422774,0.05322,89567.0,89566.0,0.00236552]
[1763575423170,0.05322,89567.0,89527.0,0.03998611]
[1763575423381,0.02605,89546.0,89545.0,0.00219803]
[1763575423578,0.01534,89565.0,89545.0,0.05462803]
[1763575423967,0.04005363,89576.0,89548.0,0.1117642]
[1763575424177,0.04005363,89576.0,89554.0,0.1117565]
[1763575424376,0.00016749,89571.0,89555.0,0.00219803]
[1763575424883,0.00016749,89571.0,89556.0,0.1117543]
[1763575425082,0.08564,89570.0,89557.0,0.00219803]
[1763575425282,0.10848,89569.0,89558.0,0.01635]
[1763575425482,0.10848,89569.0,89568.0,0.00219803]
[1763575425980,0.00016749,89571.0,89568.0,0.00219803]
[1763575426170,0.05322,89554.0,89553.0,0.00016744]
[1763575426369,0.05322,89554.0,89553.0,0.00236547]
[1763575426774,0.05322,89554.0,89520.0,0.05633611]
[1763575427083,0.0158,89558.0,89520.0,0.05633611]
[1763575427084,0.0158,89558.0,89534.0,0.00219803]
[1763575427280,0.0158,89558.0,89537.0,0.1117784]
[1763575427478,0.10516,89557.0,89538.0,0.00219803]
[1763575427680,0.0158,89558.0,89538.0,0.00219803]
[1763575427681,0.05322,89539.0,89538.0,0.00219803]
[1763575428387,0.00016749,89547.0,89546.0,0.05243]
[1763575428590,0.08148749,89547.0,89546.0,0.05462803]
[1763575429181,0.00016749,89547.0,89546.0,0.05462803]
[1763575429780,0.00116749,89547.0,89546.0,0.05462803]
[1763575431477,0.00016749,89547.0,89546.0,0.05462803]
[1763575435387,0.00016749,89547.0,89546.0,0.00219803]
[1763575435388,0.05338749,89547.0,89546.0,0.00219803]
[1763575436089,0.00016749,89547.0,89546.0,0.05462803]
[1763575437296,0.00016749,89547.0,89546.0,0.16639523]
[1763575437981,0.00016749,89547.0,89546.0,0.05462803]
[1763575440292,0.04005363,89571.0,89546.0,0.00219803]
[1763575440500,0.28086607,89580.0,89546.0,0.00219803]
[1763575440501,0.10836,89574.0,89556.0,0.01635]
[1763575440793,0.05322,89574.0,89573.0,0.02601]
[1763575441093,0.05322,89574.0,89573.0,0.00219803]
[1763575441505,0.05322,89574.0,89540.0,0.26506607]
[1763575441506,0.05322,89566.0,89565.0,0.00016749]
[1763575441693,0.05322,89566.0,89551.0,0.00219803]
[1763575441893,0.05322,89566.0,89557.0,0.00016749]
[1763575442097,0.02419,89559.0,89558.0,0.00219803]
[1763575442293,0.00216749,89574.0,89558.0,0.05134803]
[1763575442493,0.00216749,89574.0,89573.0,0.04915]
[1763575442804,0.00216749,89574.0,89573.0,0.05134803]
[1763575443492,0.00016749,89574.0,89573.0,0.05134803]
[1763575444294,0.05218749,89574.0,89573.0,0.00219803]
[1763575444890,0.05218749,89574.0,89557.0,0.01525749]
[1763575444891,0.05218749,89574.0,89557.0,0.00016749]
[1763575445198,0.05002,89559.0,89558.0,0.00219803]
[1763575445790,0.05002,89558.0,89557.0,0.00016749]
[1763575445991,0.05002,89558.0,89517.0,0.03998611]
[1763575445992,0.05002,89527.0,89517.0,0.03998611]
[1763575446300,0.05002,89505.0,89485.0,0.03998611]
[1763575446602,0.05002,89505.0,89504.0,0.0023431]
[1763575446901,0.00016759,89513.0,89504.0,0.0514931]
[1763575447197,0.05002,89505.0,89504.0,0.0023431]
[1763575447598,0.0654,89505.0,89504.0,0.00014507]
[1763575448502,0.0654,89505.0,89504.0,0.0023431]
[1763575448694,0.05002,89505.0,89504.0,0.0023431]
[1763575448895,0.00016759,89513.0,89506.0,0.02321]
[1763575449204,0.00016759,89513.0,89507.0,0.00219803]
[1763575449205,0.05002,89508.0,89507.0,0.00219803]
[1763575449715,0.05002,89505.0,89504.0,0.00014507]
[1763575450695,0.05002,89505.0,89504.0,0.0023431]
[1763575450896,0.14818,89505.0,89504.0,0.0023431]
[1763575451092,0.05002,89505.0,89504.0,0.0023431]
[1763575451499,0.05002,89505.0,89504.0,0.00014507]
[1763575454103,0.13259,89505.0,89504.0,0.0514931]
[1763575454300,0.00016759,89513.0,89504.0,0.0514931]
[1763575454507,0.00016759,89513.0,89512.0,0.04915]
[1763575454802,0.00016759,89513.0,89512.0,0.05134803]
[1763575454995,0.08068,89522.0,89512.0,0.05134803]
[1763575455196,0.02419,89513.0,89512.0,0.05134803]
[1763575455704,0.02419,89513.0,89512.0,0.00219803]
[1763575455705,0.05002,89513.0,89512.0,0.00219803]
[1763575457101,0.0654,89505.0,89504.0,0.00031266]
[1763575457302,0.0654,89505.0,89504.0,0.00251069]
[1763575458597,0.05002,89505.0,89504.0,0.02572069]
[1763575458792,0.01538,89518.0,89505.0,0.01509]
[1763575459008,0.10844,89517.0,89506.0,0.00219803]
[1763575459304,0.1084,89516.0,89506.0,0.00219803]
[1763575459506,0.01538,89518.0,89510.0,0.1118117]
[1763575459705,0.10991,89518.0,89517.0,0.00219803]
[1763575459895,0.00016759,89521.0,89520.0,0.04915]
[1763575460091,0.00016759,89521.0,89520.0,0.05134803]
[1763575460692,0.05002,89539.0,89520.0,0.00219803]
[1763575461603,0.00016759,89538.0,89521.0,0.00016759]
[1763575461901,0.05002,89523.0,89522.0,0.00219803]
[1763575463497,0.05002,89523.0,89522.0,0.02540803]
[1763575463697,0.00016759,89538.0,89522.0,0.05134803]
[1763575463896,0.02419,89523.0,89522.0,0.05134803]
[1763575464100,0.05002,89523.0,89522.0,0.00219803]
[1763575464595,0.07112,89534.0,89522.0,0.04858803]
[1763575464903,0.00016759,89538.0,89522.0,0.04858803]
[1763575465103,0.1084,89537.0,89522.0,0.04858803]
[1763575465307,0.04484,89523.0,89522.0,0.00219803]
[1763575466411,0.04484,89523.0,89522.0,0.04683803]
[1763575466616,0.00016759,89538.0,89537.0,0.04464]
[1763575466902,0.04500759,89538.0,89537.0,0.00219803]
[1763575467895,0.04500759,89538.0,89537.0,0.02365803]
[1763575468095,0.04500759,89538.0,89537.0,0.00219803]
[1763575468507,0.04600759,89538.0,89537.0,0.00219803]
[1763575469101,0.04500759,89538.0,89537.0,0.00219803]
[1763575469300,0.04500759,89538.0,89521.0,0.00016759]
[1763575469496,0.04500759,89538.0,89522.0,0.00219803]
[1763575469904,0.45674407,89562.0,89542.0,0.1117715]
[1763575470107,0.04484,89562.0,89561.0,0.00219803]
[1763575470300,0.90005572,89579.0,89565.0,0.04464]
[1763575470507,0.04511913,89566.0,89565.0,0.00219803]
[1763575471305,0.00027913,89566.0,89565.0,0.04683803]
[1763575472007,0.02269913,89566.0,89565.0,0.04683803]
[1763575472308,0.06014877,89600.0,89565.0,0.04683803]
[1763575472309,0.04009918,89596.0,89595.0,0.04421]
[1763575472499,0.06014877,89614.0,89602.0,0.1339265]
[1763575472705,0.044209,89606.0,89605.0,0.00219803]
[1763575473902,0.045209,89606.0,89605.0,0.00219803]
[1763575475510,0.001279,89606.0,89605.0,0.04640803]
[1763575476208,0.045209,89606.0,89605.0,0.02442803]
[1763575476508,0.0009995,89606.0,89605.0,0.04640803]
[1763575476701,0.00016748,89614.0,89613.0,0.1558936]
[1763575476906,0.01204,89648.0,89614.0,0.01307]
[1763575477102,0.05721,89642.0,89641.0,0.00219803]
[1763575477412,0.40515835,89656.0,89641.0,0.02442803]
[1763575477413,0.01328,89656.0,89641.0,0.02442803]
[1763575477710,0.01328,89656.0,89641.0,0.00219803]
[1763575477912,0.04420888,89646.0,89641.0,0.00219803]
[1763575478107,0.00027888,89646.0,89645.0,0.04421]
[1763575478416,0.00027888,89646.0,89645.0,0.04640803]
[1763575478914,0.00016739,89652.0,89651.0,0.04421]
[1763575479110,0.00016739,89652.0,89651.0,0.04640803]
[1763575479927,0.02556171,89684.0,89651.0,0.04640803]
[1763575479928,0.03993436,89689.0,89656.0,0.11163]
[1763575480207,0.03993436,89719.0,89686.0,0.111592]
[1763575480412,0.40344,89714.0,89690.0,0.21088329]
[1763575480615,0.40344,89714.0,89691.0,0.00219803]
[1763575480811,0.04393,89692.0,89691.0,0.00219803]
[1763575481409,0.15241,89692.0,89691.0,0.00219803]
[1763575481715,0.04393,89684.0,89683.0,0.00016729]
[1763575481911,0.04393,89684.0,89640.0,0.02306999]
[1763575482114,0.21088329,89670.0,89647.0,0.00219803]
[1763575482303,0.02144,89648.0,89647.0,0.00219803]
[1763575482614,0.04393,89648.0,89647.0,0.00219803]
[1763575482816,0.02144,89648.0,89647.0,0.00219803]
[1763575483122,0.04393,89648.0,89647.0,0.00219803]
[1763575483412,0.00016729,89656.0,89647.0,0.00219803]
[1763575483614,0.00016729,89656.0,89655.0,0.04421]
[1763575483819,0.03672729,89656.0,89655.0,0.04640803]
[1763575484115,0.00016729,89656.0,89655.0,0.04640803]
[1763575485414,0.00016729,89656.0,89655.0,0.00219803]
[1763575485415,0.04409729,89656.0,89655.0,0.00219803]
[1763575485809,0.09469729,89656.0,89655.0,0.00219803]
[1763575486114,0.07220729,89656.0,89655.0,0.00219803]
[1763575486514,0.09469729,89656.0,89655.0,0.00219803]
[1763575486914,0.04393,89643.0,89642.0,0.0001434]
[1763575487121,0.04393,89640.0,89620.0,0.05334321]
[1763575487309,0.04393,89640.0,89600.0,0.33565229]
[1763575487512,0.21088329,89630.0,89601.0,0.00219803]
[1763575487709,0.21088329,89620.0,89601.0,0.00219803]
[1763575487912,0.02144,89602.0,89601.0,0.00219803]
[1763575488217,0.09430226,89602.0,89601.0,0.00219803]
[1763575488804,9.226e-05,89602.0,89601.0,0.16010663]
[1763575489010,9.226e-05,89602.0,89601.0,0.04840803]
[1763575490217,9.226e-05,89602.0,89601.0,0.04640803]
[1763575490821,9.226e-05,89602.0,89601.0,0.00219803]
[1763575491514,9.226e-05,89602.0,89601.0,0.00319803]
[1763575491919,0.03901226,89602.0,89601.0,0.00319803]
[1763575492322,0.08294226,89602.0,89601.0,0.00319803]
[1763575492823,0.08294226,89602.0,89601.0,0.001]
[1763575493818,9.226e-05,89602.0,89601.0,0.00319803]
[1763575494016,0.03653226,89602.0,89601.0,0.00319803]
[1763575494213,0.08046226,89602.0,89601.0,0.001]
[1763575494920,9.226e-05,89602.0,89601.0,0.00319803]
[1763575495121,0.06029226,89602.0,89601.0,0.04740803]
[1763575496916,9.226e-05,89602.0,89601.0,0.04740803]
[1763575497112,9.226e-05,89602.0,89601.0,0.00319803]
[1763575497321,0.05361226,89602.0,89601.0,0.00319803]
[1763575497518,0.09754226,89602.0,89601.0,0.00319803]
[1763575497713,9.226e-05,89602.0,89601.0,0.04740803]
[1763575498013,0.00016738,89610.0,89609.0,0.1558986]
[1763575498213,0.00016738,89610.0,89609.0,0.15809663]
[1763575498611,0.00016738,89610.0,89609.0,0.04640803]
[1763575498813,0.04409738,89610.0,89609.0,0.00219803]
[1763575499017,0.05676852,89610.0,89609.0,0.00219803]
[1763575499719,0.04414852,89610.0,89609.0,0.00219803]
[1763575500022,0.00021852,89610.0,89609.0,0.04640803]
[1763575500217,0.04414852,89610.0,89609.0,0.00219803]
[1763575500419,0.05742852,89610.0,89609.0,0.00219803]
[1763575500619,0.04393,89594.0,89593.0,0.00016738]
[1763575500820,0.04393,89594.0,89593.0,0.00236541]
[1763575501122,0.22438181,89610.0,89597.0,0.1117034]
[1763575501123,0.00021852,89610.0,89597.0,0.1117034]
[1763575501322,0.02249,89599.0,89598.0,0.00219803]
[1763575501525,0.04393,89594.0,89593.0,0.00016738]